{"text_format":"1","workbook":"xlsx","n_sheets":2,"sheets":["Szkoły","Wyniki"],"not_rendered":{"charts":0,"images":0,"macros":1,"external_links":0,"defined_names":55,"comments":0,"pivot_tables":0},"unopened":[],"bounds":{"document_bytes":16777216,"sheet_cells":100000,"rows_first":2000,"rows_last":500,"rows_between":2000,"halvings":0,"cell_chars":16384,"cell_head_chars":4096},"cells_cut":0,"cells_raw":0,"read":"whole","date_system":"1900"}

{"sheet":"Szkoły","index":0,"n_rows":12,"n_cols":8,"rows_kept":12,"cut":false,"hidden":false,"merged":[[0,0,0,7]]}
["FINAŁ DOLNOŚLĄSKI KARATE - LICEALIADA CHŁOPCÓW PUNKTACJA DRUŻYNOWA"]
["miejsce","Szkoła",1,2,3,5,7,"Suma"]
[1,"LO 1 Oleśnica",{"$f":"9*COUNTIFS(Wyniki!C:C,B3,Wyniki!A:A,$C$2)","v":0},{"$f":"7*COUNTIFS(Wyniki!C:C,B3,Wyniki!A:A,$D$2)","v":14},{"$f":"5*COUNTIFS(Wyniki!C:C,B3,Wyniki!A:A,$E$2)","v":5},{"$f":"3*COUNTIFS(Wyniki!C:C,B3,Wyniki!A:A,$F$2)","v":0},{"$f":"2*COUNTIFS(Wyniki!C:C,B3,Wyniki!A:A,$G$2)","v":0},{"$f":"SUM(C3:G3)","v":19}]
[2,"LO 1 Bolesławiec",{"$f":"9*COUNTIFS(Wyniki!C:C,B4,Wyniki!A:A,$C$2)","v":9},{"$f":"7*COUNTIFS(Wyniki!C:C,B4,Wyniki!A:A,$D$2)","v":0},{"$f":"5*COUNTIFS(Wyniki!C:C,B4,Wyniki!A:A,$E$2)","v":5},{"$f":"3*COUNTIFS(Wyniki!C:C,B4,Wyniki!A:A,$F$2)","v":0},{"$f":"2*COUNTIFS(Wyniki!C:C,B4,Wyniki!A:A,$G$2)","v":0},{"$f":"SUM(C4:G4)","v":14}]
[2,"ZSE Bolesławiec",{"$f":"9*COUNTIFS(Wyniki!C:C,B5,Wyniki!A:A,$C$2)","v":9},{"$f":"7*COUNTIFS(Wyniki!C:C,B5,Wyniki!A:A,$D$2)","v":0},{"$f":"5*COUNTIFS(Wyniki!C:C,B5,Wyniki!A:A,$E$2)","v":5},{"$f":"3*COUNTIFS(Wyniki!C:C,B5,Wyniki!A:A,$F$2)","v":0},{"$f":"2*COUNTIFS(Wyniki!C:C,B5,Wyniki!A:A,$G$2)","v":0},{"$f":"SUM(C5:G5)","v":14}]
[4,"LO 7",{"$f":"9*COUNTIFS(Wyniki!C:C,B6,Wyniki!A:A,$C$2)","v":0},{"$f":"7*COUNTIFS(Wyniki!C:C,B6,Wyniki!A:A,$D$2)","v":7},{"$f":"5*COUNTIFS(Wyniki!C:C,B6,Wyniki!A:A,$E$2)","v":5},{"$f":"3*COUNTIFS(Wyniki!C:C,B6,Wyniki!A:A,$F$2)","v":0},{"$f":"2*COUNTIFS(Wyniki!C:C,B6,Wyniki!A:A,$G$2)","v":0},{"$f":"SUM(C6:G6)","v":12}]
[5,"LO 8",{"$f":"9*COUNTIFS(Wyniki!C:C,B7,Wyniki!A:A,$C$2)","v":9},{"$f":"7*COUNTIFS(Wyniki!C:C,B7,Wyniki!A:A,$D$2)","v":0},{"$f":"5*COUNTIFS(Wyniki!C:C,B7,Wyniki!A:A,$E$2)","v":0},{"$f":"3*COUNTIFS(Wyniki!C:C,B7,Wyniki!A:A,$F$2)","v":0},{"$f":"2*COUNTIFS(Wyniki!C:C,B7,Wyniki!A:A,$G$2)","v":0},{"$f":"SUM(C7:G7)","v":9}]
[5,"LO 9",{"$f":"9*COUNTIFS(Wyniki!C:C,B8,Wyniki!A:A,$C$2)","v":9},{"$f":"7*COUNTIFS(Wyniki!C:C,B8,Wyniki!A:A,$D$2)","v":0},{"$f":"5*COUNTIFS(Wyniki!C:C,B8,Wyniki!A:A,$E$2)","v":0},{"$f":"3*COUNTIFS(Wyniki!C:C,B8,Wyniki!A:A,$F$2)","v":0},{"$f":"2*COUNTIFS(Wyniki!C:C,B8,Wyniki!A:A,$G$2)","v":0},{"$f":"SUM(C8:G8)","v":9}]
[7,"T 12 WROCŁAW",{"$f":"9*COUNTIFS(Wyniki!C:C,B9,Wyniki!A:A,$C$2)","v":0},{"$f":"7*COUNTIFS(Wyniki!C:C,B9,Wyniki!A:A,$D$2)","v":7},{"$f":"5*COUNTIFS(Wyniki!C:C,B9,Wyniki!A:A,$E$2)","v":0},{"$f":"3*COUNTIFS(Wyniki!C:C,B9,Wyniki!A:A,$F$2)","v":0},{"$f":"2*COUNTIFS(Wyniki!C:C,B9,Wyniki!A:A,$G$2)","v":0},{"$f":"SUM(C9:G9)","v":7}]
[8,"LO 2 Oleśnica",{"$f":"9*COUNTIFS(Wyniki!C:C,B10,Wyniki!A:A,$C$2)","v":0},{"$f":"7*COUNTIFS(Wyniki!C:C,B10,Wyniki!A:A,$D$2)","v":0},{"$f":"5*COUNTIFS(Wyniki!C:C,B10,Wyniki!A:A,$E$2)","v":5},{"$f":"3*COUNTIFS(Wyniki!C:C,B10,Wyniki!A:A,$F$2)","v":0},{"$f":"2*COUNTIFS(Wyniki!C:C,B10,Wyniki!A:A,$G$2)","v":0},{"$f":"SUM(C10:G10)","v":5}]
[8,"ZS Oława",{"$f":"9*COUNTIFS(Wyniki!C:C,B11,Wyniki!A:A,$C$2)","v":0},{"$f":"7*COUNTIFS(Wyniki!C:C,B11,Wyniki!A:A,$D$2)","v":0},{"$f":"5*COUNTIFS(Wyniki!C:C,B11,Wyniki!A:A,$E$2)","v":5},{"$f":"3*COUNTIFS(Wyniki!C:C,B11,Wyniki!A:A,$F$2)","v":0},{"$f":"2*COUNTIFS(Wyniki!C:C,B11,Wyniki!A:A,$G$2)","v":0},{"$f":"SUM(C11:G11)","v":5}]
[8,"ZSOiZ Bolesławiec",{"$f":"9*COUNTIFS(Wyniki!C:C,B12,Wyniki!A:A,$C$2)","v":0},{"$f":"7*COUNTIFS(Wyniki!C:C,B12,Wyniki!A:A,$D$2)","v":0},{"$f":"5*COUNTIFS(Wyniki!C:C,B12,Wyniki!A:A,$E$2)","v":5},{"$f":"3*COUNTIFS(Wyniki!C:C,B12,Wyniki!A:A,$F$2)","v":0},{"$f":"2*COUNTIFS(Wyniki!C:C,B12,Wyniki!A:A,$G$2)","v":0},{"$f":"SUM(C12:G12)","v":5}]

{"sheet":"Wyniki","index":1,"n_rows":44,"n_cols":4,"rows_kept":44,"cut":false,"hidden":false,"merged":[[0,0,0,2]]}
["FINAŁ DOLNOŚLĄSKI KARATE - LICEALIADA PUNKTACJA INDYWIDUALNA CHŁOPCY"]
[null,"23 Kata indywidualne chłopców 2006-2005"]
[null,"Imię nazwisko","Szkoła"]
[1,"IWASZKIEWICZ PIOTR","LO 9",{"$f":"IF(C4=\"\",\"\",IF(COUNTIF(Szkoły!B:B,Wyniki!C4)=0,\"NIE MA TEJ SZKOŁY NA LIŚCIE!!!!\",\"\"))","v":""}]
[2,"WESOŁOWSKI PAWEŁ","LO 7",{"$f":"IF(C5=\"\",\"\",IF(COUNTIF(Szkoły!B:B,Wyniki!C5)=0,\"NIE MA TEJ SZKOŁY NA LIŚCIE!!!!\",\"\"))","v":""}]
[3,"PIETRZAK-ROGALA HUBERT","LO 1 OLEŚNICA",{"$f":"IF(C6=\"\",\"\",IF(COUNTIF(Szkoły!B:B,Wyniki!C6)=0,\"NIE MA TEJ SZKOŁY NA LIŚCIE!!!!\",\"\"))","v":""}]
[3,"ROSIŃSKI ADAM","ZSOIZ BOLESŁAWIEC",{"$f":"IF(C7=\"\",\"\",IF(COUNTIF(Szkoły!B:B,Wyniki!C7)=0,\"NIE MA TEJ SZKOŁY NA LIŚCIE!!!!\",\"\"))","v":""}]
[5,null,null,{"$f":"IF(C8=\"\",\"\",IF(COUNTIF(Szkoły!B:B,Wyniki!C8)=0,\"NIE MA TEJ SZKOŁY NA LIŚCIE!!!!\",\"\"))","v":""}]
[5,null,null,{"$f":"IF(C9=\"\",\"\",IF(COUNTIF(Szkoły!B:B,Wyniki!C9)=0,\"NIE MA TEJ SZKOŁY NA LIŚCIE!!!!\",\"\"))","v":""}]
[7,null,null,{"$f":"IF(C10=\"\",\"\",IF(COUNTIF(Szkoły!B:B,Wyniki!C10)=0,\"NIE MA TEJ SZKOŁY NA LIŚCIE!!!!\",\"\"))","v":""}]
[7,null,null,{"$f":"IF(C11=\"\",\"\",IF(COUNTIF(Szkoły!B:B,Wyniki!C11)=0,\"NIE MA TEJ SZKOŁY NA LIŚCIE!!!!\",\"\"))","v":""}]
[]
[null,"24 Kata indywidualne chłopców 2004-2002"]
[null,"Imię nazwisko","Szkoła"]
[1,"MAŁKOWSKI WIKTOR","LO 1 BOLESŁAWIEC",{"$f":"IF(C15=\"\",\"\",IF(COUNTIF(Szkoły!B:B,Wyniki!C15)=0,\"NIE MA TEJ SZKOŁY NA LIŚCIE!!!!\",\"\"))","v":""}]
[2,"KOWALCZYK KACPER","LO 1 OLEŚNICA",{"$f":"IF(C16=\"\",\"\",IF(COUNTIF(Szkoły!B:B,Wyniki!C16)=0,\"NIE MA TEJ SZKOŁY NA LIŚCIE!!!!\",\"\"))","v":""}]
[3,"BIELIŃSKI MICHAŁ","ZSE BOLESŁAWIEC",{"$f":"IF(C17=\"\",\"\",IF(COUNTIF(Szkoły!B:B,Wyniki!C17)=0,\"NIE MA TEJ SZKOŁY NA LIŚCIE!!!!\",\"\"))","v":""}]
[3,null,null,{"$f":"IF(C18=\"\",\"\",IF(COUNTIF(Szkoły!B:B,Wyniki!C18)=0,\"NIE MA TEJ SZKOŁY NA LIŚCIE!!!!\",\"\"))","v":""}]
[5,null,null,{"$f":"IF(C19=\"\",\"\",IF(COUNTIF(Szkoły!B:B,Wyniki!C19)=0,\"NIE MA TEJ SZKOŁY NA LIŚCIE!!!!\",\"\"))","v":""}]
[5,null,null,{"$f":"IF(C20=\"\",\"\",IF(COUNTIF(Szkoły!B:B,Wyniki!C20)=0,\"NIE MA TEJ SZKOŁY NA LIŚCIE!!!!\",\"\"))","v":""}]
[7,null,null,{"$f":"IF(C21=\"\",\"\",IF(COUNTIF(Szkoły!B:B,Wyniki!C21)=0,\"NIE MA TEJ SZKOŁY NA LIŚCIE!!!!\",\"\"))","v":""}]
[7,null,null,{"$f":"IF(C22=\"\",\"\",IF(COUNTIF(Szkoły!B:B,Wyniki!C22)=0,\"NIE MA TEJ SZKOŁY NA LIŚCIE!!!!\",\"\"))","v":""}]
[]
[null,"25 Kumite indywidualne chłopców 2006-2005 OPEN"]
[null,"Imię nazwisko","Szkoła"]
[1,"ŚLIWKA MATEUSZ","LO 8",{"$f":"IF(C26=\"\",\"\",IF(COUNTIF(Szkoły!B:B,Wyniki!C26)=0,\"NIE MA TEJ SZKOŁY NA LIŚCIE!!!!\",\"\"))","v":""}]
[2,"JAREMA KACPER","T 12 WROCŁAW",{"$f":"IF(C27=\"\",\"\",IF(COUNTIF(Szkoły!B:B,Wyniki!C27)=0,\"NIE MA TEJ SZKOŁY NA LIŚCIE!!!!\",\"\"))","v":""}]
[3,"KARWALA TYMON","ZS OŁAWA",{"$f":"IF(C28=\"\",\"\",IF(COUNTIF(Szkoły!B:B,Wyniki!C28)=0,\"NIE MA TEJ SZKOŁY NA LIŚCIE!!!!\",\"\"))","v":""}]
[3,"WESOŁOWSKI PAWEŁ","LO 7",{"$f":"IF(C29=\"\",\"\",IF(COUNTIF(Szkoły!B:B,Wyniki!C29)=0,\"NIE MA TEJ SZKOŁY NA LIŚCIE!!!!\",\"\"))","v":""}]
[5,null,null,{"$f":"IF(C30=\"\",\"\",IF(COUNTIF(Szkoły!B:B,Wyniki!C30)=0,\"NIE MA TEJ SZKOŁY NA LIŚCIE!!!!\",\"\"))","v":""}]
[5,null,null,{"$f":"IF(C31=\"\",\"\",IF(COUNTIF(Szkoły!B:B,Wyniki!C31)=0,\"NIE MA TEJ SZKOŁY NA LIŚCIE!!!!\",\"\"))","v":""}]
[7,null,null,{"$f":"IF(C32=\"\",\"\",IF(COUNTIF(Szkoły!B:B,Wyniki!C32)=0,\"NIE MA TEJ SZKOŁY NA LIŚCIE!!!!\",\"\"))","v":""}]
[7,null,null,{"$f":"IF(C33=\"\",\"\",IF(COUNTIF(Szkoły!B:B,Wyniki!C33)=0,\"NIE MA TEJ SZKOŁY NA LIŚCIE!!!!\",\"\"))","v":""}]
[]
[null,"26 Kumite indywidualne chłopców 2004-2002 OPEN"]
[null,"Imię nazwisko","Szkoła"]
[1,"BIELIŃSKI MICHAŁ","ZSE BOLESŁAWIEC",{"$f":"IF(C37=\"\",\"\",IF(COUNTIF(Szkoły!B:B,Wyniki!C37)=0,\"NIE MA TEJ SZKOŁY NA LIŚCIE!!!!\",\"\"))","v":""}]
[2,"KOWALCZYK KACPER","LO 1 OLEŚNICA",{"$f":"IF(C38=\"\",\"\",IF(COUNTIF(Szkoły!B:B,Wyniki!C38)=0,\"NIE MA TEJ SZKOŁY NA LIŚCIE!!!!\",\"\"))","v":""}]
[3,"MAŁKOWSKI WIKTOR","LO 1 BOLESŁAWIEC",{"$f":"IF(C39=\"\",\"\",IF(COUNTIF(Szkoły!B:B,Wyniki!C39)=0,\"NIE MA TEJ SZKOŁY NA LIŚCIE!!!!\",\"\"))","v":""}]
[3,"ADAMSKI MIKOŁAJ","LO 2 OLEŚNICA",{"$f":"IF(C40=\"\",\"\",IF(COUNTIF(Szkoły!B:B,Wyniki!C40)=0,\"NIE MA TEJ SZKOŁY NA LIŚCIE!!!!\",\"\"))","v":""}]
[5,null,null,{"$f":"IF(C41=\"\",\"\",IF(COUNTIF(Szkoły!B:B,Wyniki!C41)=0,\"NIE MA TEJ SZKOŁY NA LIŚCIE!!!!\",\"\"))","v":""}]
[5,null,null,{"$f":"IF(C42=\"\",\"\",IF(COUNTIF(Szkoły!B:B,Wyniki!C42)=0,\"NIE MA TEJ SZKOŁY NA LIŚCIE!!!!\",\"\"))","v":""}]
[7,null,null,{"$f":"IF(C43=\"\",\"\",IF(COUNTIF(Szkoły!B:B,Wyniki!C43)=0,\"NIE MA TEJ SZKOŁY NA LIŚCIE!!!!\",\"\"))","v":""}]
[7,null,null,{"$f":"IF(C44=\"\",\"\",IF(COUNTIF(Szkoły!B:B,Wyniki!C44)=0,\"NIE MA TEJ SZKOŁY NA LIŚCIE!!!!\",\"\"))","v":""}]